[Event "Titled Tuesday Blitz December 06 Early 2022"]
[White "Martin, Lewis"]
[Black "Stijve, Theo"]
[WhiteFideId "410551"]
[BlackFideId "1331132"]
[WhiteElo "2145"]
[BlackElo "2256"]
[Result "0-1"]
[Round "05"]
[TimeControl "180+1"]
[Date "2022.12.07"]
[WhiteClock "0:00:10"]
[BlackClock "0:00:51"]

1. e4 {[%clk 0:02:57]}  c5 {[%clk 0:02:59]} 2. Nf3 {[%clk 0:02:57]}  a6 {[%clk 0:03:00]} 3. d4 {[%clk 0:02:57]}  cxd4 {[%clk 0:03:01]} 4. Nxd4 {[%clk 0:02:57]}  Nf6 {[%clk 0:03:00]} 5. Nc3 {[%clk 0:02:57]}  e5 {[%clk 0:03:01]} 6. Nb3 {[%clk 0:02:57]}  Bb4 {[%clk 0:03:00]} 7. Bd2 {[%clk 0:02:58]}  Nc6 {[%clk 0:02:58]} 8. Nd5 {[%clk 0:02:48]}  Bxd2+ {[%clk 0:02:52]} 9. Nxd2 {[%clk 0:02:48]}  d6 {[%clk 0:02:45]} 10. Bd3 {[%clk 0:02:42]}  Nxd5 {[%clk 0:02:42]} 11. exd5 {[%clk 0:02:42]}  Nb4 {[%clk 0:02:42]} 12. Bc4 {[%clk 0:02:31]}  b5 {[%clk 0:02:37]} 13. Bb3 {[%clk 0:02:12]}  Bb7 {[%clk 0:02:28]} 14. Ne4 {[%clk 0:02:00]}  a5 {[%clk 0:02:26]} 15. c3 {[%clk 0:01:49]}  Na6 {[%clk 0:02:08]} 16. a4 {[%clk 0:01:37]}  b4 {[%clk 0:02:07]} 17. O-O {[%clk 0:01:32]}  O-O {[%clk 0:02:05]} 18. c4 {[%clk 0:01:19]}  f5 {[%clk 0:02:04]} 19. Ng3 {[%clk 0:01:16]}  Nc5 {[%clk 0:02:04]} 20. Bc2 {[%clk 0:01:16]}  g6 {[%clk 0:02:01]} 21. b3 {[%clk 0:01:14]}  Qf6 {[%clk 0:01:58]} 22. Qd2 {[%clk 0:01:05]}  Kg7 {[%clk 0:01:55]} 23. Rae1 {[%clk 0:00:46]}  Rae8 {[%clk 0:01:54]} 24. Bxf5 {[%clk 0:00:30]}  h5 {[%clk 0:01:48]} 25. Bc2 {[%clk 0:00:25]}  h4 {[%clk 0:01:46]} 26. Ne4 {[%clk 0:00:24]}  Nxe4 {[%clk 0:01:44]} 27. Bxe4 {[%clk 0:00:24]}  h3 {[%clk 0:01:40]} 28. gxh3 {[%clk 0:00:19]}  Bc8 {[%clk 0:01:40]} 29. Qd3 {[%clk 0:00:17]}  Rh8 {[%clk 0:01:35]} 30. Re3 {[%clk 0:00:17]}  Rh4 {[%clk 0:01:31]} 31. Rg3 {[%clk 0:00:17]}  g5 {[%clk 0:01:29]} 32. Kh1 {[%clk 0:00:17]}  Reh8 {[%clk 0:01:27]} 33. Rfg1 {[%clk 0:00:17]}  Rxh3 {[%clk 0:01:25]} 34. Rxh3 {[%clk 0:00:15]}  Rxh3 {[%clk 0:01:25]} 35. Qe2 {[%clk 0:00:14]}  Qf4 {[%clk 0:01:22]} 36. f3 {[%clk 0:00:13]}  Kf6 {[%clk 0:01:17]} 37. Qg2 {[%clk 0:00:13]}  Bd7 {[%clk 0:01:11]} 38. Qf2 {[%clk 0:00:13]}  g4 {[%clk 0:01:09]} 39. Rg3 {[%clk 0:00:13]}  gxf3 {[%clk 0:01:00]} 40. Rxf3 {[%clk 0:00:12]}  Rxf3 {[%clk 0:00:57]} 41. Qxf3 {[%clk 0:00:13]}  Bg4 {[%clk 0:00:52]} 42. Qxf4+ {[%clk 0:00:12]}  exf4 {[%clk 0:00:52]} 43. Kg2 {[%clk 0:00:12]}  Bd1 {[%clk 0:00:52]} 44. Kf2 {[%clk 0:00:11]}  Bxb3 {[%clk 0:00:52]} 45. Bg2 {[%clk 0:00:12]}  Bxc4 {[%clk 0:00:51]} 46. Be4 {[%clk 0:00:09]}  Ke5 {[%clk 0:00:51]} 47. Kf3 {[%clk 0:00:09]}  Bxd5 {[%clk 0:00:50]} 48. Bxd5 {[%clk 0:00:09]}  Kxd5 {[%clk 0:00:51]} 49. Kxf4 {[%clk 0:00:10]}  b3 {[%clk 0:00:51]} 0-1


[Site "https://www.chess.com"]

[Event "Titled Tuesday Blitz December 06 Early 2022"]
[White "Moksh Amit Doshi"]
[Black "Forgacs, Attila Jr."]
[WhiteFideId "25064967"]
[BlackFideId "773654"]
[WhiteElo "2297"]
[BlackElo "2168"]
[Result "0-1"]
[Round "05"]
[TimeControl "180+1"]
[Date "2022.12.07"]
[WhiteClock "0:01:55"]
[BlackClock "0:02:10"]

1. d4 {[%clk 0:02:44]}  Nf6 {[%clk 0:02:58]} 2. Nf3 {[%clk 0:02:43]}  g6 {[%clk 0:02:58]} 3. Bg5 {[%clk 0:02:41]}  h6 {[%clk 0:02:58]} 4. Bxf6 {[%clk 0:02:39]}  exf6 {[%clk 0:02:59]} 5. e4 {[%clk 0:02:36]}  Bg7 {[%clk 0:02:54]} 6. Bd3 {[%clk 0:02:33]}  O-O {[%clk 0:02:53]} 7. O-O {[%clk 0:02:34]}  d6 {[%clk 0:02:51]} 8. h3 {[%clk 0:02:31]}  Nc6 {[%clk 0:02:50]} 9. c3 {[%clk 0:02:31]}  Re8 {[%clk 0:02:49]} 10. Nbd2 {[%clk 0:02:31]}  d5 {[%clk 0:02:48]} 11. Re1 {[%clk 0:02:28]}  dxe4 {[%clk 0:02:48]} 12. Nxe4 {[%clk 0:02:29]}  f5 {[%clk 0:02:47]} 13. Nc5 {[%clk 0:02:22]}  b6 {[%clk 0:02:47]} 14. Bb5 {[%clk 0:02:20]}  bxc5 {[%clk 0:02:22]} 15. Bxc6 {[%clk 0:02:18]}  Rxe1+ {[%clk 0:02:23]} 16. Qxe1 {[%clk 0:02:19]}  Rb8 {[%clk 0:02:23]} 17. dxc5 {[%clk 0:02:10]}  Rxb2 {[%clk 0:02:21]} 18. Rd1 {[%clk 0:02:09]}  Qf8 {[%clk 0:02:17]} 19. Qe3 {[%clk 0:01:57]}  Be6 {[%clk 0:02:15]} 20. Qf4 {[%clk 0:01:55]}  Qxc5 {[%clk 0:02:10]} 0-1


[Site "https://www.chess.com"]

[Event "Titled Tuesday Blitz December 06 Early 2022"]
[White "Molina, Roberto Junio Brito"]
[Black "Andreikin, Dmitry"]
[WhiteFideId "2109450"]
[BlackFideId "4158814"]
[WhiteElo "2376"]
[BlackElo "2735"]
[Result "0-1"]
[Round "05"]
[TimeControl "180+1"]
[Date "2022.12.06"]
[WhiteClock "0:00:05"]
[BlackClock "0:00:15"]

1. d4 {[%clk 0:02:49]}  Nf6 {[%clk 0:02:58]} 2. c4 {[%clk 0:02:49]}  e6 {[%clk 0:02:56]} 3. Nf3 {[%clk 0:02:48]}  b6 {[%clk 0:02:54]} 4. g3 {[%clk 0:02:46]}  Bb7 {[%clk 0:02:53]} 5. Bg2 {[%clk 0:02:46]}  Bb4+ {[%clk 0:02:51]} 6. Bd2 {[%clk 0:02:45]}  a5 {[%clk 0:02:49]} 7. Nc3 {[%clk 0:02:44]}  O-O {[%clk 0:02:49]} 8. Qc2 {[%clk 0:02:43]}  d6 {[%clk 0:02:39]} 9. O-O {[%clk 0:02:35]}  Nbd7 {[%clk 0:02:39]} 10. Bg5 {[%clk 0:02:32]}  Bxc3 {[%clk 0:02:26]} 11. Bxf6 {[%clk 0:02:31]}  Nxf6 {[%clk 0:02:17]} 12. Qxc3 {[%clk 0:02:31]}  Qe7 {[%clk 0:02:16]} 13. e3 {[%clk 0:02:25]}  Rfe8 {[%clk 0:02:14]} 14. b3 {[%clk 0:02:23]}  e5 {[%clk 0:02:13]} 15. d5 {[%clk 0:02:21]}  Bc8 {[%clk 0:02:09]} 16. Nd2 {[%clk 0:02:21]}  e4 {[%clk 0:01:56]} 17. a3 {[%clk 0:02:06]}  h5 {[%clk 0:01:56]} 18. h4 {[%clk 0:02:05]}  Bf5 {[%clk 0:01:51]} 19. b4 {[%clk 0:02:00]}  Ng4 {[%clk 0:01:44]} 20. Nb3 {[%clk 0:01:57]}  g5 {[%clk 0:01:40]} 21. Nd4 {[%clk 0:01:48]}  Bd7 {[%clk 0:01:40]} 22. bxa5 {[%clk 0:01:47]}  Rxa5 {[%clk 0:01:28]} 23. hxg5 {[%clk 0:01:40]}  Qxg5 {[%clk 0:01:28]} 24. Ra2 {[%clk 0:01:25]}  h4 {[%clk 0:01:23]} 25. f4 {[%clk 0:01:11]}  exf3 {[%clk 0:01:08]} 26. Rxf3 {[%clk 0:00:48]}  Rxe3 {[%clk 0:00:59]} 27. gxh4 {[%clk 0:00:42]}  Rxc3 {[%clk 0:00:43]} 28. hxg5 {[%clk 0:00:41]}  Rxc4 {[%clk 0:00:43]} 29. Rf4 {[%clk 0:00:32]}  Ne5 {[%clk 0:00:34]} 30. Ne2 {[%clk 0:00:15]}  b5 {[%clk 0:00:29]} 31. Rxc4 {[%clk 0:00:12]}  Nxc4 {[%clk 0:00:27]} 32. Nd4 {[%clk 0:00:10]}  Rxa3 {[%clk 0:00:22]} 33. Re2 {[%clk 0:00:09]}  Kf8 {[%clk 0:00:18]} 34. Bf1 {[%clk 0:00:08]}  Rg3+ {[%clk 0:00:17]} 35. Kf2 {[%clk 0:00:08]}  Rxg5 {[%clk 0:00:17]} 36. Ra2 {[%clk 0:00:09]}  Rxd5 {[%clk 0:00:17]} 37. Ra8+ {[%clk 0:00:07]}  Ke7 {[%clk 0:00:16]} 38. Nf3 {[%clk 0:00:07]}  Rf5 {[%clk 0:00:15]} 39. Kg3 {[%clk 0:00:05]}  Rxf3+ {[%clk 0:00:15]} 0-1


[Site "https://www.chess.com"]

[Event "Titled Tuesday Blitz December 06 Early 2022"]
[White "Moroni, Luca Jr"]
[Black "Han, Yichen"]
[WhiteFideId "865834"]
[BlackFideId "1054430"]
[WhiteElo "2573"]
[BlackElo "2323"]
[Result "1-0"]
[Round "05"]
[TimeControl "180+1"]
[Date "2022.12.06"]
[WhiteClock "0:01:03"]
[BlackClock "0:00:10"]

1. d4 {[%clk 0:03:00]}  d5 {[%clk 0:02:53]} 2. Bf4 {[%clk 0:02:59]}  Nf6 {[%clk 0:02:51]} 3. e3 {[%clk 0:02:59]}  e6 {[%clk 0:02:48]} 4. Nf3 {[%clk 0:02:58]}  Bd6 {[%clk 0:02:47]} 5. Nbd2 {[%clk 0:02:52]}  O-O {[%clk 0:02:45]} 6. Bd3 {[%clk 0:02:51]}  c5 {[%clk 0:02:45]} 7. dxc5 {[%clk 0:02:49]}  Bxf4 {[%clk 0:02:45]} 8. exf4 {[%clk 0:02:47]}  Qc7 {[%clk 0:02:42]} 9. g3 {[%clk 0:02:48]}  Qxc5 {[%clk 0:02:41]} 10. Qe2 {[%clk 0:02:48]}  b6 {[%clk 0:02:38]} 11. Nb3 {[%clk 0:02:42]}  Qc7 {[%clk 0:02:37]} 12. Nbd4 {[%clk 0:02:40]}  Nc6 {[%clk 0:02:23]} 13. O-O {[%clk 0:02:37]}  Bb7 {[%clk 0:02:12]} 14. c3 {[%clk 0:02:33]}  Nxd4 {[%clk 0:02:02]} 15. Nxd4 {[%clk 0:02:24]}  Ne4 {[%clk 0:02:01]} 16. f3 {[%clk 0:02:21]}  Nc5 {[%clk 0:02:00]} 17. Rfe1 {[%clk 0:02:16]}  Nxd3 {[%clk 0:01:56]} 18. Qxd3 {[%clk 0:02:17]}  Rac8 {[%clk 0:01:54]} 19. a3 {[%clk 0:02:16]}  g6 {[%clk 0:01:49]} 20. Re5 {[%clk 0:02:15]}  Rfd8 {[%clk 0:01:34]} 21. Rae1 {[%clk 0:02:13]}  Qc4 {[%clk 0:01:33]} 22. Qd2 {[%clk 0:02:10]}  b5 {[%clk 0:01:18]} 23. g4 {[%clk 0:02:04]}  a5 {[%clk 0:01:16]} 24. f5 {[%clk 0:02:04]}  exf5 {[%clk 0:01:14]} 25. gxf5 {[%clk 0:02:03]}  b4 {[%clk 0:01:12]} 26. axb4 {[%clk 0:02:01]}  axb4 {[%clk 0:01:12]} 27. f6 {[%clk 0:01:51]}  Qc5 {[%clk 0:00:44]} 28. Re7 {[%clk 0:01:42]}  Qb6 {[%clk 0:00:43]} 29. R1e6 {[%clk 0:01:27]}  bxc3 {[%clk 0:00:24]} 30. bxc3 {[%clk 0:01:24]}  Qb1+ {[%clk 0:00:22]} 31. Kg2 {[%clk 0:01:05]}  Rxc3 {[%clk 0:00:10]} 32. Re8+ {[%clk 0:01:03]} 1-0


[Site "https://www.chess.com"]

[Event "Titled Tuesday Blitz December 06 Early 2022"]
[White "Petrova, Irina"]
[Black "Kleiman, Jake"]
[WhiteFideId "14124122"]
[BlackFideId "2020041"]
[WhiteElo "2023"]
[BlackElo "2542"]
[Result "0-1"]
[Round "05"]
[TimeControl "180+1"]
[Date "2022.12.07"]
[WhiteClock "0:00:19"]
[BlackClock "0:00:34"]

1. e4 {[%clk 0:03:00]}  c5 {[%clk 0:02:59]} 2. Nf3 {[%clk 0:03:00]}  e6 {[%clk 0:03:00]} 3. c4 {[%clk 0:02:59]}  Nc6 {[%clk 0:03:00]} 4. Nc3 {[%clk 0:02:59]}  g5 {[%clk 0:02:58]} 5. h3 {[%clk 0:02:56]}  Bg7 {[%clk 0:02:57]} 6. Be2 {[%clk 0:02:56]}  h6 {[%clk 0:02:56]} 7. O-O {[%clk 0:02:56]}  Nge7 {[%clk 0:02:56]} 8. d3 {[%clk 0:02:54]}  d6 {[%clk 0:02:56]} 9. Be3 {[%clk 0:02:52]}  Nd4 {[%clk 0:02:57]} 10. Nb5 {[%clk 0:02:35]}  Nec6 {[%clk 0:02:55]} 11. Nfxd4 {[%clk 0:02:26]}  cxd4 {[%clk 0:02:54]} 12. Bd2 {[%clk 0:02:25]}  a6 {[%clk 0:02:55]} 13. Na3 {[%clk 0:02:25]}  e5 {[%clk 0:02:52]} 14. b4 {[%clk 0:02:22]}  Be6 {[%clk 0:02:49]} 15. b5 {[%clk 0:02:21]}  Ne7 {[%clk 0:02:40]} 16. bxa6 {[%clk 0:02:17]}  bxa6 {[%clk 0:02:37]} 17. Bg4 {[%clk 0:02:11]}  O-O {[%clk 0:02:36]} 18. Bxe6 {[%clk 0:02:08]}  fxe6 {[%clk 0:02:37]} 19. Qg4 {[%clk 0:02:05]}  Qd7 {[%clk 0:02:35]} 20. h4 {[%clk 0:02:04]}  gxh4 {[%clk 0:02:19]} 21. Bxh6 {[%clk 0:02:02]}  Rf7 {[%clk 0:02:20]} 22. Qxh4 {[%clk 0:01:57]}  Qa4 {[%clk 0:02:06]} 23. Bc1 {[%clk 0:01:46]}  Raf8 {[%clk 0:02:00]} 24. c5 {[%clk 0:01:44]}  d5 {[%clk 0:01:53]} 25. exd5 {[%clk 0:01:38]}  exd5 {[%clk 0:01:53]} 26. Rb1 {[%clk 0:01:33]}  Ng6 {[%clk 0:01:41]} 27. Qg5 {[%clk 0:01:21]}  Nf4 {[%clk 0:01:30]} 28. Bxf4 {[%clk 0:01:20]}  Rxf4 {[%clk 0:01:30]} 29. Rb3 {[%clk 0:01:17]}  Qc6 {[%clk 0:01:26]} 30. Qe7 {[%clk 0:01:07]}  Qg6 {[%clk 0:01:23]} 31. Qd6 {[%clk 0:00:54]}  Qf7 {[%clk 0:01:15]} 32. Rb2 {[%clk 0:00:40]}  Rf6 {[%clk 0:01:08]} 33. Qxe5 {[%clk 0:00:28]}  Rxf2 {[%clk 0:01:08]} 34. Rbxf2 {[%clk 0:00:28]}  Bxe5 {[%clk 0:00:54]} 35. Rxf7 {[%clk 0:00:27]}  Rxf7 {[%clk 0:00:55]} 36. Rxf7 {[%clk 0:00:27]}  Kxf7 {[%clk 0:00:56]} 37. Nc2 {[%clk 0:00:25]}  a5 {[%clk 0:00:53]} 38. Ne1 {[%clk 0:00:22]}  Ke7 {[%clk 0:00:49]} 39. Nf3 {[%clk 0:00:22]}  Bg7 {[%clk 0:00:47]} 40. g4 {[%clk 0:00:21]}  Kd7 {[%clk 0:00:48]} 41. g5 {[%clk 0:00:19]}  Bf8 {[%clk 0:00:39]} 42. Nxd4 {[%clk 0:00:17]}  Bxc5 {[%clk 0:00:38]} 43. Kg2 {[%clk 0:00:18]}  Bxd4 {[%clk 0:00:39]} 44. Kf3 {[%clk 0:00:18]}  Ke6 {[%clk 0:00:36]} 45. Kf4 {[%clk 0:00:17]}  Be5+ {[%clk 0:00:36]} 46. Ke3 {[%clk 0:00:18]}  Kf5 {[%clk 0:00:36]} 47. Kd2 {[%clk 0:00:16]}  Kxg5 {[%clk 0:00:35]} 48. Kc2 {[%clk 0:00:17]}  Kf4 {[%clk 0:00:35]} 49. Kb3 {[%clk 0:00:18]}  Ke3 {[%clk 0:00:34]} 50. Ka4 {[%clk 0:00:19]}  Bc3 {[%clk 0:00:34]} 0-1


[Site "https://www.chess.com"]

[Event "Titled Tuesday Blitz December 06 Early 2022"]
[White "Rian, Kapriaga"]
[Black "Kvaloy, Aksel Bu"]
[WhiteFideId "7103263"]
[BlackFideId "1528815"]
[WhiteElo "2314"]
[BlackElo "2184"]
[Result "0-1"]
[Round "05"]
[TimeControl "180+1"]
[Date "2022.12.07"]
[WhiteClock "0:00:08"]
[BlackClock "0:00:16"]

1. d4 {[%clk 0:03:00]}  Nf6 {[%clk 0:02:49]} 2. Nf3 {[%clk 0:03:00]}  e6 {[%clk 0:02:47]} 3. Bf4 {[%clk 0:02:59]}  c5 {[%clk 0:02:46]} 4. e3 {[%clk 0:02:59]}  cxd4 {[%clk 0:02:45]} 5. exd4 {[%clk 0:02:58]}  b6 {[%clk 0:02:45]} 6. Nbd2 {[%clk 0:02:56]}  Bb7 {[%clk 0:02:45]} 7. Bd3 {[%clk 0:02:55]}  d6 {[%clk 0:02:45]} 8. O-O {[%clk 0:02:54]}  Be7 {[%clk 0:02:43]} 9. Re1 {[%clk 0:02:53]}  O-O {[%clk 0:02:41]} 10. c3 {[%clk 0:02:52]}  Nbd7 {[%clk 0:02:38]} 11. h3 {[%clk 0:02:51]}  a6 {[%clk 0:02:37]} 12. a4 {[%clk 0:02:49]}  Nd5 {[%clk 0:02:21]} 13. Bg3 {[%clk 0:02:46]}  N7f6 {[%clk 0:02:21]} 14. Nc4 {[%clk 0:02:43]}  Nh5 {[%clk 0:02:16]} 15. Bh2 {[%clk 0:02:41]}  Nhf4 {[%clk 0:02:15]} 16. Bf1 {[%clk 0:02:40]}  Rc8 {[%clk 0:02:11]} 17. Nfd2 {[%clk 0:02:35]}  b5 {[%clk 0:02:02]} 18. axb5 {[%clk 0:02:34]}  axb5 {[%clk 0:02:03]} 19. Ne3 {[%clk 0:02:33]}  Qb6 {[%clk 0:01:55]} 20. Qb3 {[%clk 0:02:24]}  Bc6 {[%clk 0:01:06]} 21. Nxd5 {[%clk 0:02:17]}  Nxd5 {[%clk 0:01:06]} 22. Ne4 {[%clk 0:01:57]}  Rfd8 {[%clk 0:01:05]} 23. Ra3 {[%clk 0:01:47]}  b4 {[%clk 0:01:01]} 24. Ra6 {[%clk 0:01:46]}  Qb7 {[%clk 0:00:58]} 25. Rea1 {[%clk 0:01:31]}  bxc3 {[%clk 0:00:53]} 26. Qxb7 {[%clk 0:01:18]}  Bxb7 {[%clk 0:00:54]} 27. Ra7 {[%clk 0:01:13]}  cxb2 {[%clk 0:00:42]} 28. Rb1 {[%clk 0:01:11]}  Rc1 {[%clk 0:00:31]} 29. Rxb2 {[%clk 0:01:05]}  Bc6 {[%clk 0:00:29]} 30. Bg3 {[%clk 0:00:41]}  f5 {[%clk 0:00:25]} 31. Nd2 {[%clk 0:00:33]}  f4 {[%clk 0:00:25]} 32. Bh2 {[%clk 0:00:31]}  Bf6 {[%clk 0:00:25]} 33. Nb3 {[%clk 0:00:24]}  Rb8 {[%clk 0:00:23]} 34. Nxc1 {[%clk 0:00:19]}  Rxb2 {[%clk 0:00:20]} 35. Nd3 {[%clk 0:00:18]}  Rb1 {[%clk 0:00:20]} 36. Nxf4 {[%clk 0:00:14]}  Nxf4 {[%clk 0:00:20]} 37. Bxf4 {[%clk 0:00:14]}  Bb5 {[%clk 0:00:21]} 38. Rb7 {[%clk 0:00:12]}  Rxf1+ {[%clk 0:00:20]} 39. Kh2 {[%clk 0:00:12]}  Bc4 {[%clk 0:00:21]} 40. Rc7 {[%clk 0:00:11]}  Bd5 {[%clk 0:00:20]} 41. Kg3 {[%clk 0:00:09]}  h5 {[%clk 0:00:16]} 42. Bxd6 {[%clk 0:00:09]}  h4+ {[%clk 0:00:15]} 43. Kh2 {[%clk 0:00:08]}  Rxf2 {[%clk 0:00:16]} 0-1


[Site "https://www.chess.com"]

[Event "Titled Tuesday Blitz December 06 Early 2022"]
[White "Salman, Pavel"]
[Black "Osiecki, Stanislaw"]
[WhiteFideId "24153753"]
[BlackFideId "1102990"]
[WhiteElo "2187"]
[BlackElo "2088"]
[Result "1-0"]
[Round "05"]
[TimeControl "180+1"]
[Date "2022.12.07"]
[WhiteClock "0:00:26"]
[BlackClock "0:00:14"]

1. Nf3 {[%clk 0:03:00]}  Nf6 {[%clk 0:02:59]} 2. g3 {[%clk 0:03:01]}  g6 {[%clk 0:02:58]} 3. Bg2 {[%clk 0:03:02]}  d6 {[%clk 0:02:59]} 4. O-O {[%clk 0:03:02]}  Bg7 {[%clk 0:03:00]} 5. d3 {[%clk 0:03:03]}  O-O {[%clk 0:03:00]} 6. Nbd2 {[%clk 0:03:04]}  e5 {[%clk 0:03:01]} 7. e4 {[%clk 0:03:05]}  Nbd7 {[%clk 0:03:01]} 8. c3 {[%clk 0:03:04]}  Nc5 {[%clk 0:03:00]} 9. Qc2 {[%clk 0:03:03]}  Qe7 {[%clk 0:02:58]} 10. b4 {[%clk 0:03:03]}  Ne6 {[%clk 0:02:58]} 11. a4 {[%clk 0:03:03]}  c6 {[%clk 0:02:58]} 12. Nc4 {[%clk 0:03:00]}  Nd7 {[%clk 0:02:54]} 13. Ba3 {[%clk 0:02:57]}  f5 {[%clk 0:02:53]} 14. Rae1 {[%clk 0:02:40]}  f4 {[%clk 0:02:49]} 15. Qd2 {[%clk 0:02:19]}  g5 {[%clk 0:02:41]} 16. Bb2 {[%clk 0:01:55]}  g4 {[%clk 0:02:39]} 17. Nh4 {[%clk 0:01:54]}  f3 {[%clk 0:02:31]} 18. Bh1 {[%clk 0:01:53]}  Rd8 {[%clk 0:02:05]} 19. Nf5 {[%clk 0:01:51]}  Qf6 {[%clk 0:02:00]} 20. Ncxd6 {[%clk 0:01:47]}  Ndf8 {[%clk 0:01:53]} 21. c4 {[%clk 0:01:39]}  Nc7 {[%clk 0:01:42]} 22. c5 {[%clk 0:01:37]}  Bxf5 {[%clk 0:01:37]} 23. exf5 {[%clk 0:01:37]}  Nd7 {[%clk 0:01:27]} 24. Nxb7 {[%clk 0:01:29]}  Rdb8 {[%clk 0:01:19]} 25. Nd6 {[%clk 0:01:29]}  Nd5 {[%clk 0:01:16]} 26. b5 {[%clk 0:01:24]}  Bh6 {[%clk 0:01:15]} 27. Qa5 {[%clk 0:01:14]}  Nxc5 {[%clk 0:01:13]} 28. Bxe5 {[%clk 0:01:11]}  Qd8 {[%clk 0:01:05]} 29. Qxd8+ {[%clk 0:01:04]}  Rxd8 {[%clk 0:01:04]} 30. bxc6 {[%clk 0:01:05]}  Nxa4 {[%clk 0:01:01]} 31. f6 {[%clk 0:01:00]}  Kf8 {[%clk 0:00:56]} 32. c7 {[%clk 0:00:54]}  Nxc7 {[%clk 0:00:56]} 33. Nf5 {[%clk 0:00:54]}  Rxd3 {[%clk 0:00:49]} 34. Bxc7 {[%clk 0:00:53]}  Bg5 {[%clk 0:00:43]} 35. Re6 {[%clk 0:00:44]}  Kf7 {[%clk 0:00:41]} 36. Rfe1 {[%clk 0:00:43]}  Nc3 {[%clk 0:00:39]} 37. Nd6+ {[%clk 0:00:39]}  Kg6 {[%clk 0:00:35]} 38. f7+ {[%clk 0:00:38]}  Kg7 {[%clk 0:00:34]} 39. Ne4 {[%clk 0:00:30]}  Bd8 {[%clk 0:00:29]} 40. Be5+ {[%clk 0:00:25]}  Kxf7 {[%clk 0:00:26]} 41. Bxc3 {[%clk 0:00:25]}  Kxe6 {[%clk 0:00:26]} 42. Nc5+ {[%clk 0:00:26]}  Kd5 {[%clk 0:00:26]} 43. Nxd3 {[%clk 0:00:27]}  Kc4 {[%clk 0:00:26]} 44. Ne5+ {[%clk 0:00:25]}  Kxc3 {[%clk 0:00:26]} 45. Nxg4 {[%clk 0:00:26]}  a5 {[%clk 0:00:25]} 46. Bxf3 {[%clk 0:00:26]}  a4 {[%clk 0:00:25]} 47. Bxa8 {[%clk 0:00:26]}  a3 {[%clk 0:00:25]} 48. Bd5 {[%clk 0:00:26]}  Ba5 {[%clk 0:00:23]} 49. Ne3 {[%clk 0:00:26]}  Kb2 {[%clk 0:00:21]} 50. Re2+ {[%clk 0:00:26]}  Kb1 {[%clk 0:00:20]} 51. f4 {[%clk 0:00:26]}  Bb6 {[%clk 0:00:14]} 52. Kf2 {[%clk 0:00:26]}  Bd4 {[%clk 0:00:14]} 53. f5 {[%clk 0:00:26]} 1-0


[Site "https://www.chess.com"]

[Event "Titled Tuesday Blitz December 06 Early 2022"]
[White "Samaganova, Aleksandra"]
[Black "Mkrtchian, Lilit"]
[WhiteFideId "13800221"]
[BlackFideId "13300601"]
[WhiteElo "1864"]
[BlackElo "2316"]
[Result "1-0"]
[Round "05"]
[TimeControl "180+1"]
[Date "2022.12.07"]
[WhiteClock "0:00:04"]
[BlackClock "0:00:02"]

1. c4 {[%clk 0:03:00]}  e6 {[%clk 0:02:59]} 2. Nc3 {[%clk 0:02:57]}  d5 {[%clk 0:02:58]} 3. e3 {[%clk 0:02:57]}  Nf6 {[%clk 0:02:58]} 4. Nf3 {[%clk 0:02:57]}  c5 {[%clk 0:02:56]} 5. d4 {[%clk 0:02:55]}  cxd4 {[%clk 0:02:50]} 6. exd4 {[%clk 0:02:54]}  Bb4 {[%clk 0:02:49]} 7. cxd5 {[%clk 0:02:53]}  Nxd5 {[%clk 0:02:48]} 8. Bd2 {[%clk 0:02:53]}  O-O {[%clk 0:02:40]} 9. Bd3 {[%clk 0:02:52]}  Nc6 {[%clk 0:02:37]} 10. O-O {[%clk 0:02:52]}  Nf6 {[%clk 0:02:34]} 11. Bg5 {[%clk 0:02:48]}  h6 {[%clk 0:02:30]} 12. Bh4 {[%clk 0:02:47]}  Be7 {[%clk 0:02:30]} 13. Bc2 {[%clk 0:02:45]}  Nh5 {[%clk 0:02:16]} 14. Bxe7 {[%clk 0:02:37]}  Nxe7 {[%clk 0:02:16]} 15. Qd3 {[%clk 0:02:37]}  g6 {[%clk 0:02:13]} 16. Rfe1 {[%clk 0:02:33]}  Kg7 {[%clk 0:01:57]} 17. Ne5 {[%clk 0:02:29]}  Nf4 {[%clk 0:01:44]} 18. Qd2 {[%clk 0:02:24]}  Nfd5 {[%clk 0:01:43]} 19. Rad1 {[%clk 0:02:20]}  Bd7 {[%clk 0:01:40]} 20. Ne4 {[%clk 0:02:15]}  Bc6 {[%clk 0:01:37]} 21. a3 {[%clk 0:02:08]}  Nf5 {[%clk 0:01:35]} 22. h3 {[%clk 0:01:59]}  Rc8 {[%clk 0:01:35]} 23. Bb1 {[%clk 0:01:54]}  Qh4 {[%clk 0:01:28]} 24. Nf3 {[%clk 0:01:49]}  Qf4 {[%clk 0:01:26]} 25. Qd3 {[%clk 0:01:43]}  Rfd8 {[%clk 0:01:20]} 26. Ne5 {[%clk 0:01:32]}  Nde7 {[%clk 0:01:15]} 27. g3 {[%clk 0:01:21]}  Bxe4 {[%clk 0:01:02]} 28. Rxe4 {[%clk 0:01:16]}  Qg5 {[%clk 0:01:01]} 29. h4 {[%clk 0:00:59]}  Qh5 {[%clk 0:00:09]} 30. g4 {[%clk 0:00:55]}  Qxh4 {[%clk 0:00:09]} 31. gxf5 {[%clk 0:00:54]}  Qg5+ {[%clk 0:00:08]} 32. Rg4 {[%clk 0:00:46]}  Qh5 {[%clk 0:00:09]} 33. f6+ {[%clk 0:00:27]}  Kxf6 {[%clk 0:00:07]} 34. Qf3+ {[%clk 0:00:13]}  Nf5 {[%clk 0:00:06]} 35. Re1 {[%clk 0:00:06]}  Rd5 {[%clk 0:00:02]} 36. Bxf5 {[%clk 0:00:04]} 1-0


[Site "https://www.chess.com"]